Workbook

Sheet 废旧物资清单
A1: 序号 | B1: 主要废旧物资名称 | C1: 型号规格 | D1: 单位 | E1: 数量
A2: =SUBTOTAL(3,$B$1:B1)*1 -> 1 | B2: 手动液压车 | C2: CBD-3t | D2: 辆 | E2: 1
A3: =SUBTOTAL(3,$B$1:B2)*1 -> 2 | B3: 液压推轮升降两用机 | C3: SL-TL-50 | D3: 辆 | E3: 1
A4: =SUBTOTAL(3,$B$1:B3)*1 -> 3 | B4: 手动液压车 | C4: CBD-3t | D4: 辆 | E4: 2
A5: =SUBTOTAL(3,$B$1:B4)*1 -> 4 | B5: 片梭经轴挡圈+挡板 | D5: 个 | E5: =5+3 -> 8
A6: =SUBTOTAL(3,$B$1:B5)*1 -> 5 | B6: TMT后加热器滤筒 | D6: 件 | E6: 2
A7: =SUBTOTAL(3,$B$1:B6)*1 -> 6 | B7: BARMAG热辊主轴（HFY）（国产） | C7: 1-004-9564 | D7: 根 | E7: 4
A8: =SUBTOTAL(3,$B$1:B7)*1 -> 7 | B8: BARMAG热辊罩壳 | C8: HFY | D8: 件 | E8: 1
A9: =SUBTOTAL(3,$B$1:B8)*1 -> 8 | B9: 摇臂（圆头） | C9: LX-100-1 | D9: 件 | E9: 2
A10: =SUBTOTAL(3,$B$1:B9)*1 -> 9 | B10: BARMAG切丝杆外杆（HMLS） | C10: 1-009-0541 SHQF（国产） | D10: 根 | E10: 3
A11: =SUBTOTAL(3,$B$1:B10)*1 -> 10 | B11: BRRMAG切丝杆外杆（SLS）(国产) | C11: 1-006-9536 SHQF | D11: 根 | E11: 1
A12: =SUBTOTAL(3,$B$1:B11)*1 -> 11 | B12: BARMAG卷绕小车推出装置气缸管（进口） | C12: E-001-0001，Φ50（内）*Φ54*1500 | D12: 根 | E12: 1
A13: =SUBTOTAL(3,$B$1:B12)*1 -> 12 | B13: TMT345辊壳盖板 | D13: 块 | E13: 1
A14: =SUBTOTAL(3,$B$1:B13)*1 -> 13 | B14: 桥架盖板 | C14: 50mm宽 | D14: 米 | E14: 1
A15: =SUBTOTAL(3,$B$1:B14)*1 -> 14 | B15: BMG摩擦辊电机线圈 | D15: 个 | E15: 1
A16: =SUBTOTAL(3,$B$1:B15)*1 -> 15 | B16: TMT卷绕小车底座 (左） | C16: T3H8501060 | D16: 件 | E16: 1
A17: =SUBTOTAL(3,$B$1:B16)*1 -> 16 | B17: TMT卷绕气针 | C17: LX-385替代LX-274 | D17: 个 | E17: 7
A18: =SUBTOTAL(3,$B$1:B17)*1 -> 17 | B18: BARMAG移丝杆下气缸 | C18: 1-011-5356 | D18: 件 | E18: 2
A19: =SUBTOTAL(3,$B$1:B18)*1 -> 18 | B19: TMT卡盘衬套 | D19: 件 | E19: 1
A20: =SUBTOTAL(3,$B$1:B19)*1 -> 19 | B20: TMT卷绕小车底座（右） | C20: T3H8502060 | D20: 件 | E20: 1
A21: =SUBTOTAL(3,$B$1:B20)*1 -> 20 | B21: TMT卡盘钢套（进口） | C21: T3H4096A60 | D21: 根 | E21: 2
A22: =SUBTOTAL(3,$B$1:B21)*1 -> 21 | B22: BARMAG卷绕小车保护板前挡板（国产） | C22: GS-10-00194 | D22: 块 | E22: 3
A23: =SUBTOTAL(3,$B$1:B22)*1 -> 22 | B23: BARMAG油轮托盘 | D23: 块 | E23: 3
A24: =SUBTOTAL(3,$B$1:B23)*1 -> 23 | B24: 铝管 | C24: Φ38*3（纺丝） | D24: 米 | E24: 4
A25: =SUBTOTAL(3,$B$1:B24)*1 -> 24 | B25: BARMAG热辊主轴（HFY）（国产） | C25: 1-004-9564 | D25: 根 | E25: 1
A26: =SUBTOTAL(3,$B$1:B25)*1 -> 25 | B26: BARMAG热辊主轴轴承（HFY，进口） | C26: 1-005-6482 | D26: 件 | E26: 1
A27: =SUBTOTAL(3,$B$1:B26)*1 -> 26 | B27: BMG6头车拨叉带轮 | C27: 1-011-9402 | D27: 件 | E27: 2
A28: =SUBTOTAL(3,$B$1:B27)*1 -> 27 | B28: 机械密封 | C28: 109-35 | D28: 件 | E28: 1
A29: =SUBTOTAL(3,$B$1:B28)*1 -> 28 | B29: BARMAG卷绕小车压辊皮带罩壳 | C29: 1-007-5988 | D29: 件 | E29: 3
A30: =SUBTOTAL(3,$B$1:B29)*1 -> 29 | B30: 阀门 | C30: J411-10C，DN50 | D30: 件 | E30: 2
A31: =SUBTOTAL(3,$B$1:B30)*1 -> 30 | B31: 旋转导盘架电机隔板 | D31: 块 | E31: 4
A32: =SUBTOTAL(3,$B$1:B31)*1 -> 31 | B32: TMT卷绕小车钩丝气缸（进口） | C32: TMT卷绕小车钩丝气缸（进口） | D32: 件 | E32: 6
A33: =SUBTOTAL(3,$B$1:B32)*1 -> 32 | B33: BARMAG卷绕小车挡丝杆气缸 | C33: 1-012-5904 | D33: 件 | E33: 5
A34: =SUBTOTAL(3,$B$1:B33)*1 -> 33 | B34: TMT卡盘刹车气缸（国产） | C34: S106-0038 | D34: 件 | E34: 1
A35: =SUBTOTAL(3,$B$1:B34)*1 -> 34 | B35: TMT推丝板（国产） | C35: GS-11-00018 | D35: 件 | E35: 5
A36: =SUBTOTAL(3,$B$1:B35)*1 -> 35 | B36: TMT翻转气缸固定支架 | D36: 块 | E36: 4
A37: =SUBTOTAL(3,$B$1:B36)*1 -> 36 | B37: TMT翻转气缸 | D37: 个 | E37: 2
A38: =SUBTOTAL(3,$B$1:B37)*1 -> 37 | B38: TMT摩擦辊前轴承端盖（国产） | C38: GS-10-00199代替T3H1009060 | D38: 件 | E38: 3
A39: =SUBTOTAL(3,$B$1:B38)*1 -> 38 | B39: TMT热辊电机风扇（国产） | C39: GS-10-00213 | D39: 个 | E39: 1
A40: =SUBTOTAL(3,$B$1:B39)*1 -> 39 | B40: TMT热辊后端上油环(国产） | C40: GS-10-00060代替ZT90504500 | D40: 块 | E40: 1
A41: =SUBTOTAL(3,$B$1:B40)*1 -> 40 | B41: 压辊电机底座 | D41: 块 | E41: 1
A42: =SUBTOTAL(3,$B$1:B41)*1 -> 41 | B42: 热辊风扇 | C42: A-D08-4291 | D42: 只 | E42: 5
A43: =SUBTOTAL(3,$B$1:B42)*1 -> 42 | B43: 卷绕小车卡盘风扇（进口） | C43: 1-010-4514替代1-000-4900 | D43: 只 | E43: 5
A44: =SUBTOTAL(3,$B$1:B43)*1 -> 43 | B44: 热辊温度变送器转子(BARMAG) | C44: A-E19-0770 | D44: 只 | E44: 4
A45: =SUBTOTAL(3,$B$1:B44)*1 -> 44 | B45: 热辊温度变送器定子(BARMAG) | C45: A-D01-9249 | D45: 只 | E45: 3
A46: =SUBTOTAL(3,$B$1:B45)*1 -> 45 | B46: 测速传感器 | C46: 1-000-3689 | D46: 个 | E46: 1
A47: =SUBTOTAL(3,$B$1:B46)*1 -> 46 | B47: 测速传感器 | C47: A-D05-6843 | D47: 个 | E47: 2
A48: =SUBTOTAL(3,$B$1:B47)*1 -> 47 | B48: 位置传感器 | C48: A-767-3810 | D48: 个 | E48: 1
A49: =SUBTOTAL(3,$B$1:B48)*1 -> 48 | B49: BMG小车限位开关S54 | C49: 1-000-9166 | D49: 个 | E49: 1
A50: =SUBTOTAL(3,$B$1:B49)*1 -> 49 | B50: TMT卡盘速度传感器（进口） | C50: Z904973501（CD线） | D50: 只 | E50: 1
A51: =SUBTOTAL(3,$B$1:B50)*1 -> 50 | B51: HFY热辊铂电阻(BARMAG) | C51: 1-005-1515 | D51: 只 | E51: 1
A52: =SUBTOTAL(3,$B$1:B51)*1 -> 51 | B52: 铂电阻（HF6） | C52: A-E19-0783 | D52: 只 | E52: 1
A53: =SUBTOTAL(3,$B$1:B52)*1 -> 52 | B53: 铂电阻（HF8-1） | C53: A-D16-5829 | D53: 只 | E53: 1
A54: =SUBTOTAL(3,$B$1:B53)*1 -> 53 | B54: 铂电阻（HF8-2） | C54: A-D16-5832 | D54: 只 | E54: 1
A55: =SUBTOTAL(3,$B$1:B54)*1 -> 54 | B55: 红外测温仪 | C55: FLUKE/F62MAX（-30-500度） | D55: 只 | E55: 1
A56: =SUBTOTAL(3,$B$1:B55)*1 -> 55 | B56: HFY热辊转子电机 | C56: 1-008-1212 | D56: 台 | E56: 1
A57: =SUBTOTAL(3,$B$1:B56)*1 -> 56 | B57: 温度变送器转子（TMT辊）（进口） | C57: ZT90100100 RTS300 | D57: 件 | E57: 1
A58: =SUBTOTAL(3,$B$1:B57)*1 -> 57 | B58: 温度变送器定子（TMT辊）（进口） | C58: ZT90100202替代ZT90100201 RTS300 | D58: 件 | E58: 1
A59: =SUBTOTAL(3,$B$1:B58)*1 -> 58 | B59: 巴马格电路板风扇 | C59: RG125-19/56 220V~50HZ 120mA 20W,230V~60HZ 110mA 19W | D59: 个 | E59: 1
A60: =SUBTOTAL(3,$B$1:B59)*1 -> 59 | B60: 综框+综丝 | C60: 1900 | D60: 套 | E60: 28
A61: =SUBTOTAL(3,$B$1:B60)*1 -> 60 | B61: 抽油烟管道 | D61: M² | E61: 20
A62: =SUBTOTAL(3,$B$1:B61)*1 -> 61 | B62: 抽油烟管道 | D62: M² | E62: 32
A63: =SUBTOTAL(3,$B$1:B62)*1 -> 62 | B63: 604换热器 | C63: B11-198 | D63: 件 | E63: 1
A64: =SUBTOTAL(3,$B$1:B63)*1 -> 63 | B64: BARMAG切丝杆外杆（HMLS） | C64: 1-009-0541 SHQF（国产） | D64: 根 | E64: 2
A65: =SUBTOTAL(3,$B$1:B64)*1 -> 64 | B65: 吸丝枪（国产） | C65: LX-601 | D65: 把 | E65: 1
A66: =SUBTOTAL(3,$B$1:B65)*1 -> 65 | B66: TMT热辊电机后端盖 | D66: 个 | E66: 1
A67: =SUBTOTAL(3,$B$1:B66)*1 -> 66 | B67: BARMAG卡盘电机罩壳（HMLS） | C67: 1-005-6668 | D67: 件 | E67: 1
A68: =SUBTOTAL(3,$B$1:B67)*1 -> 67 | B68: TMT卡盘衬套 | D68: 件 | E68: 1
A69: =SUBTOTAL(3,$B$1:B68)*1 -> 68 | B69: 泵班液压缸 | C69: SC100*150,1.0Mpa | D69: 个 | E69: 1
A70: =SUBTOTAL(3,$B$1:B69)*1 -> 69 | B70: TMT热箱滤网（国产） | C70: GS-18-00014 | D70: 块 | E70: 6
A71: =SUBTOTAL(3,$B$1:B70)*1 -> 70 | B71: TMT小车横动升降轴承 | C71: Z905268100 | D71: 根 | E71: 1
A72: =SUBTOTAL(3,$B$1:B71)*1 -> 71 | B72: 球阀 | C72: Q41F-16P，DN40 | D72: 件 | E72: 2
A73: =SUBTOTAL(3,$B$1:B72)*1 -> 72 | B73: BARMAG热辊主轴（HFY）（国产） | C73: 1-004-9564 | D73: 根 | E73: 3
A74: =SUBTOTAL(3,$B$1:B73)*1 -> 73 | B74: BARMAG热辊主轴轴承（HFY，进口） | C74: 1-005-6482 | D74: 件 | E74: 3
A75: =SUBTOTAL(3,$B$1:B74)*1 -> 74 | B75: TMT345辊壳盖板 | D75: 块 | E75: 1
A76: =SUBTOTAL(3,$B$1:B75)*1 -> 75 | B76: BARMAG拨叉齿轮箱盖（右）（进口） | C76: 1-018-8955 | D76: 件 | E76: 10
A77: =SUBTOTAL(3,$B$1:B76)*1 -> 76 | B77: BARMAG拨叉齿轮箱盖（左）（进口） | C77: 1-018-8954 | D77: 件 | E77: 10
A78: =SUBTOTAL(3,$B$1:B77)*1 -> 77 | B78: BARMAG拔叉齿轮箱中间壳体-右（进口） | C78: 1-011-9863 | D78: 件 | E78: 10
A79: =SUBTOTAL(3,$B$1:B78)*1 -> 78 | B79: BARMAG拔叉齿轮箱中间壳体-左（进口） | C79: 1-011-9780 | D79: 件 | E79: 10
A80: =SUBTOTAL(3,$B$1:B79)*1 -> 79 | B80: BMG摩擦辊电机带路 | D80: 件 | E80: 4
A81: =SUBTOTAL(3,$B$1:B80)*1 -> 80 | B81: TMT小车翻转气缸滑块（国产） | C81: GS-10-00207 | D81: 块 | E81: 1
A82: =SUBTOTAL(3,$B$1:B81)*1 -> 81 | B82: 吸丝枪枪管（国产） | C82: LX-649替代YS-626 | D82: 个 | E82: 3
A83: =SUBTOTAL(3,$B$1:B82)*1 -> 82 | B83: 吸丝枪枪头（国产） | C83: LX-645-1，Φ16（内）*Φ20（外） | D83: 件 | E83: 3
A84: =SUBTOTAL(3,$B$1:B83)*1 -> 83 | B84: 吸枪枪管保护套 | C84: Φ14*Φ26*177，胶木制 | D84: 根 | E84: 3
A85: =SUBTOTAL(3,$B$1:B84)*1 -> 84 | B85: BARMAG辊壳固定丝杆（进口） | C85: A-E35-7776 | D85: 根 | E85: 1
A86: =SUBTOTAL(3,$B$1:B85)*1 -> 85 | B86: BMG卷绕小车后轮 | D86: 件 | E86: 1
A87: =SUBTOTAL(3,$B$1:B86)*1 -> 86 | B87: 热辊打水水箱 | D87: 件 | E87: 1
A88: =SUBTOTAL(3,$B$1:B87)*1 -> 87 | B88: 提综杆 | C88: 2200 | D88: 片 | E88: 11
A89: =SUBTOTAL(3,$B$1:B88)*1 -> 88 | B89: 钢筘 | D89: 张 | E89: 80
A90: =SUBTOTAL(3,$B$1:B89)*1 -> 89 | B90: 综框 | C90: 2200-3300 | D90: 张 | E90: 60
A91: =SUBTOTAL(3,$B$1:B90)*1 -> 90 | B91: 手动液压车 | C91: CBD-3t | D91: 辆 | E91: 2
A92: =SUBTOTAL(3,$B$1:B91)*1 -> 91 | B92: 片梭经轴紧圈 | D92: 个 | E92: 5
A93: =SUBTOTAL(3,$B$1:B92)*1 -> 92 | B93: 球阀 | C93: 不锈钢，DN150 | D93: 件 | E93: 3
A94: =SUBTOTAL(3,$B$1:B93)*1 -> 93 | B94: 截止阀 | C94: 铸铁，DN15 | D94: 件 | E94: 5
A95: =SUBTOTAL(3,$B$1:B94)*1 -> 94 | B95: 截止阀 | C95: 铸铁，DN25 | D95: 件 | E95: 17
A96: =SUBTOTAL(3,$B$1:B95)*1 -> 95 | B96: 过滤器 | C96: 不锈钢，DN25 | D96: 件 | E96: 1
A97: =SUBTOTAL(3,$B$1:B96)*1 -> 96 | B97: 压力表 | C97: 0-0.6Mpa | D97: 件 | E97: 13
A98: =SUBTOTAL(3,$B$1:B97)*1 -> 97 | B98: 针型阀 | C98: 不锈钢，DN15 | D98: 件 | E98: 15
A99: =SUBTOTAL(3,$B$1:B98)*1 -> 98 | B99: 玻璃流量计 | C99: LZB-25 | D99: 件 | E99: 5
A100: =SUBTOTAL(3,$B$1:B99)*1 -> 99 | B100: 轴承 | C100: NSK牌 22322EAE4（纺） | D100: 件 | E100: 2
A101: =SUBTOTAL(3,$B$1:B100)*1 -> 100 | B101: 轴承 | C101: NTN牌 33218U（纺） | D101: 个 | E101: 1
A102: =SUBTOTAL(3,$B$1:B101)*1 -> 101 | B102: 轴承 | C102: SKF 29456D | D102: 件 | E102: 1
A103: =SUBTOTAL(3,$B$1:B102)*1 -> 102 | B103: 轴承 | C103: 23136E | D103: 件 | E103: 1
A104: =SUBTOTAL(3,$B$1:B103)*1 -> 103 | B104: 轴承 | C104: NTN 6056 | D104: 件 | E104: 1
A105: =SUBTOTAL(3,$B$1:B104)*1 -> 104 | B105: BARMAG切丝杆外杆（HMLS） | C105: 1-009-0541 SHQF（国产） | D105: 根 | E105: 1
A106: =SUBTOTAL(3,$B$1:B105)*1 -> 105 | B106: BARMAG热辊主轴（HFY）（国产） | C106: 1-004-9564 | D106: 根 | E106: 2
A107: =SUBTOTAL(3,$B$1:B106)*1 -> 106 | B107: BARMAG热辊主轴轴承（HFY，进口） | C107: 1-005-6482 | D107: 件 | E107: 2
A108: =SUBTOTAL(3,$B$1:B107)*1 -> 107 | B108: TMT卷绕小车底座 (左） | C108: T3H8501060 | D108: 件 | E108: 3
A109: =SUBTOTAL(3,$B$1:B108)*1 -> 108 | B109: TMT卷绕小车底座（右） | C109: T3H8502060 | D109: 件 | E109: 3
A110: =SUBTOTAL(3,$B$1:B109)*1 -> 109 | B110: BARMAG卷绕小车推出装置气缸管（进口） | C110: E-001-0001，Φ50（内）*Φ54*1500 | D110: 根 | E110: 2
A111: =SUBTOTAL(3,$B$1:B110)*1 -> 110 | B111: 小线控箱 | D111: 个 | E111: 1
A112: =SUBTOTAL(3,$B$1:B111)*1 -> 111 | B112: BMG辊壳盖板 | D112: 块 | E112: 1
A113: =SUBTOTAL(3,$B$1:B112)*1 -> 112 | B113: 减压阀 | C113: AF30-02B | D113: 件 | E113: 1
A114: =SUBTOTAL(3,$B$1:B113)*1 -> 113 | B114: 调压阀 | C114: VEX1538 | D114: 件 | E114: 1
A115: =SUBTOTAL(3,$B$1:B114)*1 -> 114 | B115: BARMAG辊壳固定丝杆（进口） | C115: A-E35-7776 | D115: 根 | E115: 1
A116: =SUBTOTAL(3,$B$1:B115)*1 -> 115 | B116: TMT推丝板（国产） | C116: GS-11-00018 | D116: 件 | E116: 1
A117: =SUBTOTAL(3,$B$1:B116)*1 -> 116 | B117: BARMAG热辊垫圈 | C117: A-E27-4711 | D117: 件 | E117: 1
A118: =SUBTOTAL(3,$B$1:B117)*1 -> 117 | B118: 轴承 | C118: SHQF 1-004-9556 | D118: 件 | E118: 1
A119: =SUBTOTAL(3,$B$1:B118)*1 -> 118 | B119: TMT卡盘光套 | D119: 根 | E119: 2
A120: =SUBTOTAL(3,$B$1:B119)*1 -> 119 | B120: 金属管浮子流量计 | C120: H250/RR1/M9/ESK/EX/AIR | D120: 件 | E120: 1
A121: =SUBTOTAL(3,$B$1:B120)*1 -> 120 | B121: 坏有边筒管 | D121: KG | E121: 285
A122: =SUBTOTAL(3,$B$1:B121)*1 -> 121 | B122: 片梭紧圈 | D122: 只 | E122: 5
A123: =SUBTOTAL(3,$B$1:B122)*1 -> 122 | B123: 片梭经轴齿轮 | D123: 只 | E123: 2
A124: =SUBTOTAL(3,$B$1:B123)*1 -> 123 | B124: 阀门 | C124: DN300 | D124: 个 | E124: 2
A125: =SUBTOTAL(3,$B$1:B124)*1 -> 124 | B125: 大小头 | C125: DN300 | D125: 个 | E125: 1
A126: =SUBTOTAL(3,$B$1:B125)*1 -> 125 | B126: 无缝钢管 | C126: DN300 | D126: 米 | E126: 7
A127: =SUBTOTAL(3,$B$1:B126)*1 -> 126 | B127: 弯头 | C127: DN300 | D127: 个 | E127: 4
A128: =SUBTOTAL(3,$B$1:B127)*1 -> 127 | B128: 弯头 | C128: DN200 | D128: 个 | E128: 2
A129: =SUBTOTAL(3,$B$1:B128)*1 -> 128 | B129: 无缝钢管 | C129: DN50 | D129: 米 | E129: 0.5
A130: =SUBTOTAL(3,$B$1:B129)*1 -> 129 | B130: 法兰 | C130: DN300 | D130: 个 | E130: 5
A131: =SUBTOTAL(3,$B$1:B130)*1 -> 130 | B131: 法兰 | C131: DN200 | D131: 个 | E131: 2
A132: =SUBTOTAL(3,$B$1:B131)*1 -> 131 | B132: 办公楼景观灯 | C132: 3.5*0.5米 | D132: 张 | E132: 4
A133: =SUBTOTAL(3,$B$1:B132)*1 -> 132 | B133: 截止阀 | C133: DN250 | D133: 个 | E133: 1
A134: =SUBTOTAL(3,$B$1:B133)*1 -> 133 | B134: 蝶阀 | C134: DN250 | D134: 个 | E134: 1
A135: =SUBTOTAL(3,$B$1:B134)*1 -> 134 | B135: 蝶阀 | C135: DN300 | D135: 个 | E135: 3
A136: =SUBTOTAL(3,$B$1:B135)*1 -> 135 | B136: 高温球阀 | C136: DN80 | D136: 个 | E136: 2
A137: =SUBTOTAL(3,$B$1:B136)*1 -> 136 | B137: 高温球阀 | C137: DN32 | D137: 个 | E137: 2
A138: =SUBTOTAL(3,$B$1:B137)*1 -> 137 | B138: 高温球阀 | C138: DN20 | D138: 个 | E138: 2
A139: =SUBTOTAL(3,$B$1:B138)*1 -> 138 | B139: 废综框 | D139: 片 | E139: 4
A140: =SUBTOTAL(3,$B$1:B139)*1 -> 139 | B140: 圆形排烟防火阀 | C140: PFHF WSDc-K -280o，规格700 | D140: 件 | E140: 1
A141: =SUBTOTAL(3,$B$1:B140)*1 -> 140 | B141: 螺杆齿轮箱底板 | D141: 块 | E141: 1
A142: =SUBTOTAL(3,$B$1:B141)*1 -> 141 | B142: 角铁支架板 | D142: 块 | E142: 1
A143: =SUBTOTAL(3,$B$1:B142)*1 -> 142 | B143: 废旧柜门 | D143: 块 | E143: 2
A144: =SUBTOTAL(3,$B$1:B143)*1 -> 143 | B144: 风管 | D144: 米 | E144: 若干
A145: =SUBTOTAL(3,$B$1:B144)*1 -> 144 | B145: BARMAG切丝杆外杆（HMLS） | C145: 1-009-0541 SHQF（国产） | D145: 根 | E145: 2
A146: =SUBTOTAL(3,$B$1:B145)*1 -> 145 | B146: BRRMAG切丝杆外杆（SLS）（国产） | C146: 1-006-9536 SHQF | D146: 根 | E146: 1
A147: =SUBTOTAL(3,$B$1:B146)*1 -> 146 | B147: 摇臂（圆头） | C147: LX-100-1 | D147: 件 | E147: 1
A148: =SUBTOTAL(3,$B$1:B147)*1 -> 147 | B148: 34线GR3辊电机后座盖板 | C148: ZT90538400 | D148: 块 | E148: 1
A149: =SUBTOTAL(3,$B$1:B148)*1 -> 148 | B149: 34线GR3辊电机后座 | C149: ZT90453100 | D149: 件 | E149: 2
A150: =SUBTOTAL(3,$B$1:B149)*1 -> 149 | B150: TMT热辊风叶盖板 | C150: ZT90538400 KOZ-PM7-032-22 | D150: 件 | E150: 2
A151: =SUBTOTAL(3,$B$1:B150)*1 -> 150 | B151: BARMAG卷绕小车压辊皮带罩壳 | C151: 1-007-5988 | D151: 件 | E151: 2
A152: =SUBTOTAL(3,$B$1:B151)*1 -> 151 | B152: TMT热辊电机风扇（国产） | C152: GS-10-00213 | D152: 个 | E152: 2
A153: =SUBTOTAL(3,$B$1:B152)*1 -> 152 | B153: TMT卡盘刹车气缸（国产） | C153: S106-0038 | D153: 件 | E153: 1
A154: =SUBTOTAL(3,$B$1:B153)*1 -> 153 | B154: TMT挡油环（国产） | C154: GS-10-00035（3、4线） | D154: 件 | E154: 1
A155: =SUBTOTAL(3,$B$1:B154)*1 -> 154 | B155: TMT热辊罩壳 | D155: 件 | E155: 1
A156: =SUBTOTAL(3,$B$1:B155)*1 -> 155 | B156: TMT松筒气缸（国产） | C156: GS-10-00009 | D156: 件 | E156: 1
A157: =SUBTOTAL(3,$B$1:B156)*1 -> 156 | B157: 金属波纹管 | D157: 米 | E157: 1
A158: =SUBTOTAL(3,$B$1:B157)*1 -> 157 | B158: TMT卡盘光套 | D158: 根 | E158: 2
A159: =SUBTOTAL(3,$B$1:B158)*1 -> 158 | B159: TMT摩擦辊 | C159: Z905029000 | D159: 根 | E159: 1
A160: =SUBTOTAL(3,$B$1:B159)*1 -> 159 | B160: 轴承 | C160: TS2-6210L1CC3P5 NTN（纺丝） | D160: 件 | E160: 1
A161: =SUBTOTAL(3,$B$1:B160)*1 -> 160 | B161: 输料金属编织管（纺丝） | C161: 16JR80-5500 DN80 5.5米 波纹管、法兰316L，网套316 压力等级1.6MPa,一端搬把母接头，一端法兰 （纺丝） | D161: 根 | E161: 1
A162: =SUBTOTAL(3,$B$1:B161)*1 -> 161 | B162: 热辊风扇 | C162: A-D08-4291 | D162: 件 | E162: 4
A163: =SUBTOTAL(3,$B$1:B162)*1 -> 162 | B163: 通讯小板 | C163: ER127 | D163: 件 | E163: 3
A164: =SUBTOTAL(3,$B$1:B163)*1 -> 163 | B164: 卡盘风扇 | C164: 1-010-4514 | D164: 件 | E164: 4
A165: =SUBTOTAL(3,$B$1:B164)*1 -> 164 | B165: TMT断丝检测器 | C165: Z906436700 | D165: 件 | E165: 3
A166: =SUBTOTAL(3,$B$1:B165)*1 -> 165 | B166: BMG温度变送器转子 | C166: A-E19-0770 | D166: 件 | E166: 3
A167: =SUBTOTAL(3,$B$1:B166)*1 -> 166 | B167: BMG温度变送器定子 | C167: A-D01-9249 | D167: 件 | E167: 4
A168: =SUBTOTAL(3,$B$1:B167)*1 -> 167 | B168: 电路板风扇 | C168: RG125-19/56 220V~50HZ | D168: 件 | E168: 2
A169: =SUBTOTAL(3,$B$1:B168)*1 -> 168 | B169: 兆欧表 | C169: ZC250B-3型 | D169: 件 | E169: 1
A170: =SUBTOTAL(3,$B$1:B169)*1 -> 169 | B170: 油泵线圈 | C170: A-D28-0909 | D170: 件 | E170: 2
A171: =SUBTOTAL(3,$B$1:B170)*1 -> 170 | B171: 测速传感器 | C171: 1-000-3689 | D171: 件 | E171: 1
A172: =SUBTOTAL(3,$B$1:B171)*1 -> 171 | B172: 泵后压力传感器 | C172: TDT432F-1/2-2C-46 | D172: 件 | E172: 10
A173: =SUBTOTAL(3,$B$1:B172)*1 -> 172 | B173: 显示器 | D173: 件 | E173: 2
A174: =SUBTOTAL(3,$B$1:B173)*1 -> 173 | B174: 坏有边筒管 | D174: 袋 | E174: 295KG
A175: =SUBTOTAL(3,$B$1:B174)*1 -> 174 | B175: 片梭紧圈 | D175: 只 | E175: 13
A176: =SUBTOTAL(3,$B$1:B175)*1 -> 175 | B176: 液压车 | D176: 部 | E176: 3
A177: =SUBTOTAL(3,$B$1:B176)*1 -> 176 | B177: 维修更换坏配件 | C177: 锭罐、轴承等 | D177: 袋 | E177: 1
A178: =SUBTOTAL(3,$B$1:B177)*1 -> 177 | B178: 桥架盖板 | D178: 块 | E178: 12
A179: =SUBTOTAL(3,$B$1:B178)*1 -> 178 | B179: 布机方钢 | D179: 根 | E179: 4
A180: =SUBTOTAL(3,$B$1:B179)*1 -> 179 | B180: 坏卷绕轴 | D180: 根 | E180: 5
A181: =SUBTOTAL(3,$B$1:B180)*1 -> 180 | B181: 直管风管 | C181: 160*125*115cm | D181: 个 | E181: 8
A182: =SUBTOTAL(3,$B$1:B181)*1 -> 181 | B182: 直管风管 | C182: 160*125*30cm | D182: 个 | E182: 1
A183: =SUBTOTAL(3,$B$1:B182)*1 -> 182 | B183: 弯管风管 | C183: 160*125cm，30° | D183: 个 | E183: 9
A184: =SUBTOTAL(3,$B$1:B183)*1 -> 183 | B184: 短直管，短弯管风管 | C184: 40*50cm截面 | D184: 个 | E184: 6
A185: =SUBTOTAL(3,$B$1:B184)*1 -> 184 | B185: 斜管风管 | C185: 65*215*110cm | D185: 个 | E185: 1
A186: =SUBTOTAL(3,$B$1:B185)*1 -> 185 | B186: 等丝盘 | D186: 件 | E186: 13
A187: =SUBTOTAL(3,$B$1:B186)*1 -> 186 | B187: 挡丝板 | D187: 块 | E187: 3
A188: =SUBTOTAL(3,$B$1:B187)*1 -> 187 | B188: 拆辊支架 | D188: 件 | E188: 5
A189: =SUBTOTAL(3,$B$1:B188)*1 -> 188 | B189: 法兰式不锈钢编织软管 | C189: DN50，L=1100mm（纺） | D189: 根 | E189: 1
A190: =SUBTOTAL(3,$B$1:B189)*1 -> 189 | B190: 花纹钢板 | C190: 厚度5mm | D190: 平方米 | E190: 0.15
A191: =SUBTOTAL(3,$B$1:B190)*1 -> 190 | B191: 不锈钢杆 | C191: Φ12mm，1M长 | D191: 根 | E191: 2
A192: =SUBTOTAL(3,$B$1:B191)*1 -> 191 | B192: BARMAG摩擦辊轴承（进口） | C192: D258540 | D192: 件 | E192: 2
A193: =SUBTOTAL(3,$B$1:B192)*1 -> 192 | B193: BARMAG摩擦辊轴承（进口） | C193: ACW-5-296 | D193: 件 | E193: 3
A194: =SUBTOTAL(3,$B$1:B193)*1 -> 193 | B194: BMG油轮支架 | C194: 加工件 | D194: 块 | E194: 1
A195: =SUBTOTAL(3,$B$1:B194)*1 -> 194 | B195: 角铁、方管 | C195: 边角料 | D195: 件 | E195: 若干
A196: =SUBTOTAL(3,$B$1:B195)*1 -> 195 | B196: BARMAG热辊主轴（HFY）（国产） | C196: 1-004-9564 | D196: 根 | E196: 2
A197: =SUBTOTAL(3,$B$1:B196)*1 -> 196 | B197: BARMAG卷绕小车推出装置气缸管（进口） | C197: E-001-0001，Φ50（内）*Φ54*1500 | D197: 根 | E197: 1
A198: =SUBTOTAL(3,$B$1:B197)*1 -> 197 | B198: 挂丝小车轮 | D198: 件 | E198: 3
A199: =SUBTOTAL(3,$B$1:B198)*1 -> 198 | B199: BARMAG切丝杆外杆（HMLS） | C199: 1-009-0541 SHQF（国产） | D199: 根 | E199: 4
A200: =SUBTOTAL(3,$B$1:B199)*1 -> 199 | B200: TMT卷绕小车钩丝气缸（国产） | C200: HM-0032/11代替 | D200: 件 | E200: 2
... 86 more rows
